Workbook

Sheet 專案結案統計表
A2: 專案名稱： | B2: 台灣文創ERP案 | D2: 專案經理 | E2: 蓋冠宇、趙曉杰
A3: 預計啟始日期 | B3: 2013-02-01 | D3: 實際啟始日期 | E3: 2013-02-15 | G3: 時間差異 | H3: =E3-B3 -> 14 | I3: 日
A4: 預計結束日期 | B4: 2014-03-01 | D4: 實際結束日期 | E4: 2015-02-01 | G4: 時間差異 | H4: =E4-B4 -> 337 | I4: 日
A6: 程式支數 | B6: 200 | C6: 支 | D6: 需求變動次數 | E6: 80 | F6: 次 | G6: 程式異動率 | H6: =E6/B6 -> 0.4
A7: 參與人員 | B7: 專案角色 | C7: 負責程式 | D7: 任務達成率 | E7: 平均開發時間 | F7: 程式錯誤數 | G7: 平均修復時間 | H7: 程式錯誤率
A8: 蓋冠宇 | B8: 專案經理 | C8: 0 | D8: 0 | E8: 0 | F8: 0 | G8: 0 | H8: 0
A9: 陳洪濤 | B9: 專案經理/ 系統分析師/ 程式設計師 | C9: 80 | D9: 0.7 | E9: 13.5 | F9: 30 | G9: 4.3 | H9: =F9/C9 -> 0.375
A10: 張麗娜 | B10: 程式設計師 | C10: 80 | D10: 0.65 | E10: 16 | F10: 35 | G10: 5 | H10: =F10/C10 -> 0.4375
A11: 趙曉傑 | B11: 程式設計師 | C11: 40 | D11: 0.4 | E11: 21.3 | F11: 13 | G11: 8 | H11: 0.325
A12: 成效總計 | C12: =SUM(C8:C11) -> 200 | D12: =SUM(D8:D11)/4 -> 0.4375 | E12: =SUM(E8:E11)/4 -> 12.7 | F12: =SUM(F8:F11) -> 78 | G12: =SUM(G8:G11)/4 -> 4.325 | H12: =SUM(H8:H11)/4 -> 0.284375

Sheet 工作彙報時間統計表(彙總)
A2: 統計時間起 | B2: 2015-01-01 | D2: 統計時間迄 | E2: 2015-01-31 | G2: 列表日期 | H2: 2015-02-28 | J2: 製表人 | K2: 蓋冠宇
A4: 序號 | B4: 人員名稱 | C4: 專案名稱 | E4: 專案工作 | F4: 需求變更 | G4: 修正錯誤 | H4: 系統優化 | I4: 日常工作 | J4: 業務工作 | K4: 備註
A5: 1 | B5: 蓋冠宇 | C5: 文創ERP案 | E5: 30 | F5: 20 | G5: 5 | H5: 0 | I5: 10 | J5: 25.5
A6: 2 | B6: 蓋冠宇 | C6: 盛群半導體Portal案 | E6: 35.5 | F6: 23.5 | G6: 10 | H6: 5 | I6: 15 | J6: 15
A7: 3 | B7: 陳洪濤 | C7: 文創ERP案 | E7: 50.5 | F7: 20 | G7: 30 | H7: 15 | I7: 5 | J7: 0
A8: 4 | B8: 張麗娜 | C8: 文創ERP案 | E8: 23 | F8: 25 | G8: 30 | H8: 15 | I8: 10 | J8: 0
A9: 總計 | E9: =SUM(E5:E8) -> 139 | F9: =SUM(F5:F8) -> 88.5 | G9: 75 | H9: 35 | I9: 40 | J9: 40.5
D12: 選擇條件
D13: 複選條件

Sheet 工作彙報時間統計表(明細)
A2: 統計時間： | B2: 2015-01-01 | C2: ~ | D2: 2015-01-31 | G2: 列表日期： | H2: 2015-02-28 | J2: 製表人： | K2: 蓋冠宇
A3: 專案名稱： | B3: 文創ERP案 | G3: 專案成員： | H3: 蓋冠宇
A5: 序號 | B5: 日期 | C5: 時間區間 | E5: 工作內容 | H5: 專案工作 | I5: 需求變更 | J5: 修正錯誤 | K5: 系統優化 | L5: 日常工作 | M5: 業務工作
A6: 1 | B6: 2015-01-01 | C6: 09:30~12:00 | E6: 測試工作 | J6: 2.5
A7: 2 | B7: 2015-01-01 | C7: 13:00~14:00 | E7: 程式開發 | H7: 1
A8: 3 | B8: 2015-01-02 | C8: 09:00~12:00 | E8: 程式開發 | H8: 3
A9: 4 | B9: 2015-01-02 | C9: 13:00~18:00 | E9: 程式開發 | I9: 5
A10: 5 | B10: 2015-01-04 | C10: 10:00~11:30 | E10: 程式開發 | H10: 1.5
A11: 6 | B11: 2015-01-05
A12: 7 | B12: 2015-01-06
A13: 8 | B13: 2015-01-07
A14: 9 | B14: 2015-01-08
A15: 10 | B15: 2015-01-09
A16: 11 | B16: 2015-01-10
A17: 12 | B17: 2015-01-11
A18: 13 | B18: 2015-01-12
A19: 14 | B19: 2015-01-13
A20: 15 | B20: 2015-01-14
A21: 16 | B21: 2015-01-15
A22: 17 | B22: 2015-01-16
A23: 總計 | H23: =SUM(H6:H22) -> 5.5 | I23: =SUM(I6:I22) -> 5 | J23: =SUM(J6:J22) -> 2.5 | K23: 0 | L23: 0 | M23: 0

Sheet 時間分布統計表
A1: 統計時間起 | B1: 2015-01-01 | D1: 統計時間迄 | E1: 2015-01-31 | G1: 列表日期 | H1: 2015-02-28 | J1: 製表人 | K1: 蓋冠宇
A3: 項次 | B3: 專案名稱 | C3: 成員名稱 | D3: 工作時數 | E3: 所佔比率
A4: 1 | B4: 百威人力委外案 | C4: 張居富(Dean) | D4: 80 | E4: =D4/(D4+D7+D13) -> 0.5161290323
C5: 廖人頡(Gary) | D5: 130 | E5: =D5/(D5+D8) -> 0.8125
C6: 鄭哲宇(Ted) | D6: 150 | E6: 1
A7: 2 | B7: 山富航空自由行案 | C7: 張居富(Dean) | D7: 70 | E7: =D7/(D4+D7+D13) -> 0.4516129032
C8: 廖人頡(Gary) | D8: 30 | E8: =D8/(D5+D8) -> 0.1875
C9: 張麗娜(Alina) | D9: 60 | E9: =D9/(D9+D12) -> 0.375
A10: 3 | B10: 台灣文創人力委外案 | C10: 蓋冠宇(Nelson) | D10: 0 | E10: 0
C11: 陳洪濤(Ethan) | D11: 60 | E11: =D11/160 -> 0.375
C12: 張麗娜(Alina) | D12: 100 | E12: =D12/(D9+D12) -> 0.625
C13: 張居富(Dean) | D13: 5 | E13: =D13/(D4+D7+D13) -> 0.03225806452

Sheet 待辦事項列表(已完成)
A1: 待辦事項列表
G2: 列表日期：2015/3/20 10:30:00
A3: 項目編號 | B3: 事件所有人 | C3: 待辦事項主旨 | D3: 重要性 | E3: 狀態 | F3: 完成度 | G3: 指派人 | H3: 待辦說明
A4: 1 | B4: 蓋冠宇 | C4: 有關於個人化首頁的規範設定 | D4: 普通 | E4: 進行中 | F4: 0.5 | G4: 蓋冠宇 | H4: Dear Ted, 請將個人化首頁撰寫的工作規範記錄在程式記錄討論區中!
A5: 2 | B5: 蓋冠宇 | C5: 思考不同專案，如何合併在專案任務管理功能中 | D5: 普通 | E5: 進行中 | F5: 0.3 | G5: 蓋冠宇 | H5: 因為不同的專案，會有不同的任務，如果將專案工作項目加入呈現條件中，預設為空值時，就會產生過多的欄位，反而不好閱讀。
A6: 3 | B6: 原玉東 | C6: 請將管理系統的程式及資料補到正式機 | D6: 普通 | E6: 進行中 | F6: 0.3 | G6: 蓋冠宇 | H6: Dear John, 請將我們管理系統所撰寫的程式、資料表、及各項資料，以本系統專案管理的方式進行填寫! 我會將你指派為這個專案的專案經理，我們共同以專案管理的角度檢視開發到目前為止，是否順暢。
A7: 4 | B7: …

Sheet SD列印(已完成)
A1: 1.應匯出成PDF、Word等格式
A2: 2. 以每章節為一支程式的SD附加累次的需求變更產生檔案。
A3: 3. 因為檔案可能很大，所以要考慮效能及做法上(例如：每次產生一個模組)。

Sheet 需求變更單列印(已完成)
A1: 1. 每次印出一個需求的需求變更單。

Sheet 專案任務進度表(已完成)
A1: 專案任務進度表
A2: 匯出時間:2015/03/20
A3: 項次 | B3: 專案名稱 | C3: 模組名稱 | D3: 程式名稱 | E3: 專案管理 | F3: 需求訪談 | G3: 系統分析 | H3: 系統設計 | I3: 開發環境準備 | J3: 程式撰寫 | K3: 單元測試 | L3: 整合性測試 | M3: 壓力測試 | N3: 程式上線
A4: 1 | B4: ANS系統改寫案 | C4: [2]基本物料資訊查詢 | D4: 1. 供應商基本資料查詢（V.1） | H4: 1 | J4: 1
A5: 2 | B5: ANS系統改寫案 | C5: [2]基本物料資訊查詢 | D5: 2. 生產品號基本資料查詢（V.1） | H5: 1 | J5: 1
A6: 3 | B6: ANS系統改寫案 | C6: [2]基本物料資訊查詢 | D6: 3. 廠商交貨車輛管制查詢（V.1） | H6: 1 | J6: 1
A7: 4 | B7: ANS系統改寫案 | C7: [2]基本物料資訊查詢 | D7: X. 使用手冊（V.1） | H7: 1 | J7: 1
A8: 5 | B8: ANS系統改寫案 | C8: [3]日常物料資訊查詢 | D8: 1. 廠商交貨作業（V.1） | H8: 1 | J8: 1
A9: 6 | B9: ANS系統改寫案 | C9: [3]日常物料資訊查詢 | D9: 10. 異常登入報表（V.1） | H9: 1 | J9: 1
A10: 7 | B10: ANS系統改寫案 | C10: [3]日常物料資訊查詢 | D10: 11. 廠商密碼重設流程（V.1） | H10: 1 | J10: 1
A11: 8 | B11: ANS系統改寫案 | C11: [3]日常物料資訊查詢 | D11: 2. 發票明細查詢（V.1） | H11: 1 | J11: 1
A12: 9 | B12: ANS系統改寫案 | C12: [3]日常物料資訊查詢 | D12: 3. 發票總額查詢（V.1） | H12: 1 | J12: 1
